[Event "Salon de Provence op"]
[Site "Salon de Provence FRA"]
[Date "2023.07.12"]
[Round "7.2"]
[White "Golubka, Petro"]
[Black "Espanet, Fabien"]
[Result "1-0"]
[ECO "C47"]
[WhiteElo "2383"]
[BlackElo "1585"]
[WhiteFideId "-1"]
[BlackFideId "-1"]
[PlyCount "86"]
[GameId "2129404707693898"]
[EventDate "2023.07.08"]
[EventType "swiss"]
[EventRounds "9"]
[EventCountry "FRA"]
[SourceTitle "10 Days #729"]
[Source "ChessMix"]
[SourceDate "2023.07.20"]
[SourceVersion "1"]
[SourceVersionDate "2023.07.20"]
[SourceQuality "1"]
[TimeControl "1"]

1. e4 {[%emt 0:00:00]} e5 {[%emt 0:00:00]} 2. Nf3 {[%emt 0:00:00]} Nf6 {[%emt 0:00:00]} 3. Nc3 {[%emt 0:00:00]} Nc6 {[%emt 0:00:00]} 4. h3 {[%emt 0:00:00]} d5 {[%emt 0:00:00]} 5. exd5 {[%emt 0:00:00]} Nxd5 {[%emt 0:00:00]} 6. Bb5 {[%emt 0:00:00]} Nxc3 {[%emt 0:00:00]} 7. bxc3 {[%emt 0:00:00]} Bd6 {[%emt 0:00:00]} 8. d4 {[%emt 0:00:00]} exd4 {[%emt 0:00:00]} 9. cxd4 {[%emt 0:00:00]} O-O {[%emt 0:00:00]} 10. O-O {[%emt 0:00:00]} Qf6 {[%emt 0:00:00]} 11. c3 {[%emt 0:00:00]} Bf5 {[%emt 0:00:00]} 12. a4 {[%emt 0:00:00]} Rfe8 {[%emt 0:00:00]} 13. a5 {[%emt 0:00:00]} a6 {[%emt 0:00:00]} 14. Bd3 {[%emt 0:00:00]} Bxd3 {[%emt 0:00:00]} 15. Qxd3 {[%emt 0:00:00]} h6 {[%emt 0:00:00]} 16. Be3 {[%emt 0:00:00]} Rad8 {[%emt 0:00:00]} 17. Rfb1 {[%emt 0:00:00]} Rb8 {[%emt 0:00:00]} 18. Bd2 {[%emt 0:00:00]} Ne7 {[%emt 0:00:00]} 19. Rb2 {[%emt 0:00:00]} Ng6 {[%emt 0:00:00]} 20. Rab1 {[%emt 0:00:00]} Nf4 {[%emt 0:00:00]} 21. Bxf4 {[%emt 0:00:00]} Qxf4 {[%emt 0:00:00]} 22. g3 {[%emt 0:00:00]} Qe4 {[%emt 0:00:00]} 23. Qxe4 {[%emt 0:00:00]} Rxe4 {[%emt 0:00:00]} 24. Rxb7 {[%emt 0:00:00]} Rxb7 {[%emt 0:00:00]} 25. Rxb7 {[%emt 0:00:00]} Re2 {[%emt 0:00:00]} 26. c4 {[%emt 0:00:00]} Ra2 {[%emt 0:00:00]} 27. c5 {[%emt 0:00:00]} Bf8 {[%emt 0:00:00]} 28. Ne5 {[%emt 0:00:00]} Be7 {[%emt 0:00:00]} 29. Nc6 {[%emt 0:00:00]} Bf6 {[%emt 0:00:00]} 30. Rxc7 {[%emt 0:00:00]} Rd2 {[%emt 0:00:00]} 31. Rc8+ {[%emt 0:00:00]} Kh7 {[%emt 0:00:00]} 32. Ra8 {[%emt 0:00:00]} Bxd4 {[%emt 0:00:00]} 33. Nxd4 {[%emt 0:00:00]} Rxd4 {[%emt 0:00:00]} 34. Rxa6 {[%emt 0:00:00]} Rc4 {[%emt 0:00:00]} 35. Rc6 {[%emt 0:00:00]} Ra4 {[%emt 0:00:00]} 36. a6 {[%emt 0:00:00]} Ra5 {[%emt 0:00:00]} 37. f4 {[%emt 0:00:00]} f6 {[%emt 0:00:00]} 38. Kf2 {[%emt 0:00:00]} Kg6 {[%emt 0:00:00]} 39. Ke3 {[%emt 0:00:00]} Ra3+ {[%emt 0:00:00]} 40. Ke4 {[%emt 0:00:00]} Rxg3 {[%emt 0:00:00]} 41. a7 {[%emt 0:00:00]} Ra3 {[%emt 0:00:00]} 42. Rc7 {[%emt 0:00:00]} f5+ {[%emt 0:00:00]} 43. Ke5 {[%emt 0:00:00]} Ra5 {[%emt 0:00:00]} 1-0

[Event "Salon de Provence op"]
[Site "Salon de Provence FRA"]
[Date "2023.07.13"]
[Round "8.1"]
[White "Lalic, Bogdan"]
[Black "Golubka, Petro"]
[Result "1/2-1/2"]
[ECO "D85"]
[WhiteElo "2371"]
[BlackElo "2383"]
[WhiteFideId "-1"]
[BlackFideId "-1"]
[PlyCount "43"]
[GameId "2129404707693905"]
[EventDate "2023.07.08"]
[EventType "swiss"]
[EventRounds "9"]
[EventCountry "FRA"]
[SourceTitle "10 Days #729"]
[Source "ChessMix"]
[SourceDate "2023.07.20"]
[SourceVersion "1"]
[SourceVersionDate "2023.07.20"]
[SourceQuality "1"]
[TimeControl "1"]

1. d4 {[%emt 0:00:00]} Nf6 {[%emt 0:00:00]} 2. c4 {[%emt 0:00:00]} g6 {[%emt 0:00:00]} 3. Nc3 {[%emt 0:00:00]} d5 {[%emt 0:00:00]} 4. Nf3 {[%emt 0:00:00]} Bg7 {[%emt 0:00:00]} 5. cxd5 {[%emt 0:00:00]} Nxd5 {[%emt 0:00:00]} 6. e4 {[%emt 0:00:00]} Nxc3 {[%emt 0:00:00]} 7. bxc3 {[%emt 0:00:00]} c5 {[%emt 0:00:00]} 8. Rb1 {[%emt 0:00:00]} O-O {[%emt 0:00:00]} 9. Be2 {[%emt 0:00:00]} b6 {[%emt 0:00:00]} 10. O-O {[%emt 0:00:00]} Bb7 {[%emt 0:00:00]} 11. Qd3 {[%emt 0:00:00]} e6 {[%emt 0:00:00]} 12. Bg5 {[%emt 0:00:00]} Qd7 {[%emt 0:00:00]} 13. Qe3 {[%emt 0:00:00]} Qc6 {[%emt 0:00:00]} 14. Nd2 {[%emt 0:00:00]} Rc8 {[%emt 0:00:00]} 15. Bb5 {[%emt 0:00:00]} Qc7 {[%emt 0:00:00]} 16. e5 {[%emt 0:00:00]} a6 {[%emt 0:00:00]} 17. Bd3 {[%emt 0:00:00]} Nd7 {[%emt 0:00:00]} 18. Be4 {[%emt 0:00:00]} b5 {[%emt 0:00:00]} 19. a4 {[%emt 0:00:00]} Bc6 {[%emt 0:00:00]} 20. axb5 {[%emt 0:00:00]} axb5 {[%emt 0:00:00]} 21. Bxc6 {[%emt 0:00:00]} Qxc6 {[%emt 0:00:00]} 22. Ne4 {[%emt 0:00:00]} 1/2-1/2

[Event "Salon de Provence op"]
[Site "Salon de Provence FRA"]
[Date "2023.07.21"]
[Round "9.2"]
[White "Golubka, Petro"]
[Black "Hernandez, Lara"]
[Result "1-0"]
[ECO "B23"]
[WhiteElo "2383"]
[BlackElo "1956"]
[WhiteFideId "-1"]
[BlackFideId "-1"]
[PlyCount "63"]
[GameId "2129404707693914"]
[EventDate "2023.07.08"]
[EventType "swiss"]
[EventRounds "9"]
[EventCountry "FRA"]
[SourceTitle "10 Days #729"]
[Source "ChessMix"]
[SourceDate "2023.07.20"]
[SourceVersion "1"]
[SourceVersionDate "2023.07.20"]
[SourceQuality "1"]
[TimeControl "1"]

1. e4 {[%emt 0:00:00]} d6 {[%emt 0:00:00]} 2. f4 {[%emt 0:00:00]} c5 {[%emt 0:00:00]} 3. Nc3 {[%emt 0:00:00]} Nc6 {[%emt 0:00:00]} 4. Bb5 {[%emt 0:00:00]} Nf6 {[%emt 0:00:00]} 5. Bxc6+ {[%emt 0:00:00]} bxc6 {[%emt 0:00:00]} 6. Nf3 {[%emt 0:00:00]} Qb6 {[%emt 0:00:00]} 7. O-O {[%emt 0:00:00]} c4+ {[%emt 0:00:00]} 8. Kh1 {[%emt 0:00:00]} e6 {[%emt 0:00:00]} 9. b3 {[%emt 0:00:00]} cxb3 {[%emt 0:00:00]} 10. axb3 {[%emt 0:00:00]} Ba6 {[%emt 0:00:00]} 11. d3 {[%emt 0:00:00]} Be7 {[%emt 0:00:00]} 12. Qe1 {[%emt 0:00:00]} Ng4 {[%emt 0:00:00]} 13. h3 {[%emt 0:00:00]} h5 {[%emt 0:00:00]} 14. g3 {[%emt 0:00:00]} Nf6 {[%emt 0:00:00]} 15. Bb2 {[%emt 0:00:00]} Bb7 {[%emt 0:00:00]} 16. Na4 {[%emt 0:00:00]} Qc7 {[%emt 0:00:00]} 17. b4 {[%emt 0:00:00]} a5 {[%emt 0:00:00]} 18. e5 {[%emt 0:00:00]} Nd5 {[%emt 0:00:00]} 19. exd6 {[%emt 0:00:00]} Bxd6 {[%emt 0:00:00]} 20. Bxg7 {[%emt 0:00:00]} Rg8 {[%emt 0:00:00]} 21. Be5 {[%emt 0:00:00]} Nxb4 {[%emt 0:00:00]} 22. Bxd6 {[%emt 0:00:00]} Qxd6 {[%emt 0:00:00]} 23. Qf2 {[%emt 0:00:00]} h4 {[%emt 0:00:00]} 24. Qc5 {[%emt 0:00:00]} Qd5 {[%emt 0:00:00]} 25. c4 {[%emt 0:00:00]} Qxc5 {[%emt 0:00:00]} 26. Nxc5 {[%emt 0:00:00]} hxg3 {[%emt 0:00:00]} 27. Rfb1 {[%emt 0:00:00]} g2+ {[%emt 0:00:00]} 28. Kh2 {[%emt 0:00:00]} Nc2 {[%emt 0:00:00]} 29. Ra2 {[%emt 0:00:00]} Nb4 {[%emt 0:00:00]} 30. Ra4 {[%emt 0:00:00]} O-O-O {[%emt 0:00:00]} 31. Rxa5 {[%emt 0:00:00]} Nxd3 {[%emt 0:00:00]} 32. Nxb7 {[%emt 0:00:00]} 1-0

[Event "UKR-ch 1/2 final"]
[Site "Omelnyk UKR"]
[Date "2021.09.22"]
[Round "1.7"]
[White "Chubar, Vladimir"]
[Black "Golubka, Petro"]
[Result "0-1"]
[ECO "A40"]
[WhiteElo "1839"]
[BlackElo "2438"]
[WhiteFideId "-1"]
[BlackFideId "-1"]
[PlyCount "98"]
[GameId "2129404731239596"]
[EventDate "2021.09.22"]
[EventType "swiss"]
[EventRounds "9"]
[EventCountry "UKR"]
[SourceTitle "10 Days #664"]
[Source "ChessMix"]
[SourceDate "2021.10.01"]
[SourceVersion "1"]
[SourceVersionDate "2021.10.01"]
[SourceQuality "1"]
[TimeControl "40/5400+30:1800+30"]

1. d4 {[%emt 0:01:48]} b6 {[%emt 0:03:54]} 2. Bf4 {[%emt 0:01:24]} Bb7 {[%emt 0:00:07]} 3. e3 {[%emt 0:00:37]} e6 {[%emt 0:00:06]} 4. Nf3 {[%emt 0:00:41]} Be7 {[%emt 0:00:06]} 5. Bd3 {[%emt 0:01:17]} d6 {[%emt 0:00:09]} 6. c4 {[%emt 0:02:06]} g5 {[%emt 0:00:34]} 7. Bg3 {[%emt 0:02:16]} g4 {[%emt 0:00:19]} 8. Nfd2 {[%emt 0:02:20]} Bxg2 {[%emt 0:00:34]} 9. Rg1 {[%emt 0:01:00]} Bh3 {[%emt 0:00:07]} 10. f4 {[%emt 0:05:46]} Nf6 {[%emt 0:02:12]} 11. e4 {[%emt 0:03:11]} Nc6 {[%emt 0:02:43]} 12. d5 {[%emt 0:03:58]} Nd4 {[%emt 0:00:09]} 13. Nc3 {[%emt 0:05:31]} c5 {[%emt 0:00:41]} 14. dxc6 {[%emt 0:04:46]} Nxc6 {[%emt 0:01:11]} 15. Qa4 {[%emt 0:05:21]} Rc8 {[%emt 0:00:26]} 16. O-O-O {[%emt 0:13:31]} Nd7 {[%emt 0:00:25]} 17. Nb3 {[%emt 0:07:14]} a6 {[%emt 0:12:19]} 18. Bf2 {[%emt 0:03:21]} Qc7 {[%emt 0:04:24]} 19. Kb1 {[%emt 0:01:27]} h5 {[%emt 0:02:37]} 20. e5 {[%emt 0:03:05]} O-O {[%emt 0:09:12]} 21. Nd5 {[%emt 0:10:16]} exd5 {[%emt 0:01:38]} 22. cxd5 {[%emt 0:00:08]} Ncxe5 {[%emt 0:07:40]} 23. fxe5 {[%emt 0:00:42]} Nxe5 {[%emt 0:01:42]} 24. Bf5 {[%emt 0:05:30]} Qc4 {[%emt 0:00:56]} 25. Qxc4 {[%emt 0:07:02]} Rxc4 {[%emt 0:02:48]} 26. Bxb6 {[%emt 0:00:14]} Rb8 {[%emt 0:01:25]} 27. Ba5 {[%emt 0:03:43]} Nf3 {[%emt 0:01:17]} 28. Rg3 {[%emt 0:01:06]} Rf4 {[%emt 0:00:21]} 29. Bd7 {[%emt 0:02:09]} h4 {[%emt 0:00:40]} 30. Rxh3 {[%emt 0:00:51]} gxh3 {[%emt 0:00:05]} 31. Bxh3 {[%emt 0:00:23]} Rf6 {[%emt 0:01:45]} 32. Bc3 {[%emt 0:01:16]} Rg6 {[%emt 0:00:57]} 33. Nd4 {[%emt 0:01:08]} Nxd4 {[%emt 0:00:16]} 34. Bxd4 {[%emt 0:00:22]} Bf6 {[%emt 0:00:27]} 35. Bf5 {[%emt 0:00:12]} Rh6 {[%emt 0:02:09]} 36. b3 {[%emt 0:01:06]} Bxd4 {[%emt 0:00:08]} 37. Rxd4 {[%emt 0:00:05]} Re8 {[%emt 0:00:18]} 38. Rg4+ {[%emt 0:00:34]} Kf8 {[%emt 0:00:05]} 39. Be4 {[%emt 0:00:34]} Re5 {[%emt 0:00:38]} 40. Rf4 {[%emt 0:00:00]} Ke7 {[%emt 0:00:00]} 41. Kc2 {[%emt 0:02:51]} f5 {[%emt 0:02:12]} 42. Bd3 {[%emt 0:00:49]} a5 {[%emt 0:00:08]} 43. Rxf5 {[%emt 0:02:04]} Rxf5 {[%emt 0:00:21]} 44. Bxf5 {[%emt 0:00:09]} Rf6 {[%emt 0:00:09]} 45. Be6 {[%emt 0:03:13]} Rf2+ {[%emt 0:00:09]} 46. Kc3 {[%emt 0:00:29]} Rxh2 {[%emt 0:00:10]} 47. a4 {[%emt 0:00:26]} h3 {[%emt 0:00:12]} 48. Bf5 {[%emt 0:01:34]} Rf2 {[%emt 0:00:24]} 49. Be4 {[%emt 0:02:34]} h2 {[%emt 0:00:08]} 0-1

[Event "UKR-ch 1/2 final"]
[Site "Omelnyk UKR"]
[Date "2021.09.25"]
[Round "4.7"]
[White "Golubka, Petro"]
[Black "Shevchenko, Danylo"]
[Result "0-1"]
[ECO "C48"]
[WhiteElo "2438"]
[BlackElo "2195"]
[WhiteFideId "-1"]
[BlackFideId "-1"]
[PlyCount "58"]
[GameId "2129404731239629"]
[EventDate "2021.09.22"]
[EventType "swiss"]
[EventRounds "9"]
[EventCountry "UKR"]
[SourceTitle "10 Days #664"]
[Source "ChessMix"]
[SourceDate "2021.10.01"]
[SourceVersion "1"]
[SourceVersionDate "2021.10.01"]
[SourceQuality "1"]
[TimeControl "40/5400+30:1800+30"]

1. e4 {[%emt 0:02:45]} e5 {[%emt 0:00:05]} 2. Nf3 {[%emt 0:00:03]} Nc6 {[%emt 0:00:02]} 3. Nc3 {[%emt 0:00:05]} Nf6 {[%emt 0:00:05]} 4. Bb5 {[%emt 0:00:04]} Bc5 {[%emt 0:00:40]} 5. Nxe5 {[%emt 0:02:12]} Nxe5 {[%emt 0:01:36]} 6. d4 {[%emt 0:01:33]} a6 {[%emt 0:00:05]} 7. Be2 {[%emt 0:00:15]} Bd6 {[%emt 0:11:03]} 8. f4 {[%emt 0:01:12]} Nc6 {[%emt 0:00:09]} 9. e5 {[%emt 0:00:32]} Bb4 {[%emt 0:00:07]} 10. exf6 {[%emt 0:09:00]} Qxf6 {[%emt 0:01:37]} 11. Be3 {[%emt 0:04:18]} Bxc3+ {[%emt 0:07:08]} 12. bxc3 {[%emt 0:00:48]} d5 {[%emt 0:00:07]} 13. c4 {[%emt 0:01:58]} O-O {[%emt 0:13:41]} 14. O-O {[%emt 0:00:45]} Ne7 {[%emt 0:05:12]} 15. c3 {[%emt 0:01:59]} Bf5 {[%emt 0:12:40]} 16. Bf2 {[%emt 0:06:13]} Be4 {[%emt 0:02:10]} 17. g3 {[%emt 0:08:05]} dxc4 {[%emt 0:04:34]} 18. Re1 {[%emt 0:02:58]} Bd5 {[%emt 0:11:26]} 19. a4 {[%emt 0:01:40]} Qc6 {[%emt 0:03:36]} 20. Bf1 {[%emt 0:00:29]} Nf5 {[%emt 0:06:10]} 21. Re5 {[%emt 0:02:07]} Nd6 {[%emt 0:00:38]} 22. a5 {[%emt 0:00:28]} Ne4 {[%emt 0:03:37]} 23. Qe1 {[%emt 0:05:40]} f6 {[%emt 0:00:24]} 24. Re7 {[%emt 0:00:25]} Rae8 {[%emt 0:00:19]} 25. Rxe8 {[%emt 0:00:12]} Rxe8 {[%emt 0:00:02]} 26. Qc1 {[%emt 0:00:21]} Kh8 {[%emt 0:07:38]} 27. Qa3 {[%emt 0:02:26]} Nxf2 {[%emt 0:01:07]} 28. Kxf2 {[%emt 0:00:05]} Qe6 {[%emt 0:00:06]} 29. Qc1 {[%emt 0:00:23]} Qe4 {[%emt 0:00:33]} 0-1

[Event "UKR-ch 1/2 final"]
[Site "Omelnyk UKR"]
[Date "2021.09.29"]
[Round "8.10"]
[White "Petrovskyi, Vadym"]
[Black "Golubka, Petro"]
[Result "1/2-1/2"]
[ECO "B09"]
[WhiteElo "2153"]
[BlackElo "2438"]
[WhiteFideId "-1"]
[BlackFideId "-1"]
[PlyCount "107"]
[GameId "2129404731239677"]
[EventDate "2021.09.22"]
[EventType "swiss"]
[EventRounds "9"]
[EventCountry "UKR"]
[SourceTitle "10 Days #664"]
[Source "ChessMix"]
[SourceDate "2021.10.01"]
[SourceVersion "1"]
[SourceVersionDate "2021.10.01"]
[SourceQuality "1"]
[TimeControl "40/5400+30:1800+30"]

1. e4 {[%emt 0:00:46]} c6 {[%emt 0:06:17]} 2. d4 {[%emt 0:00:10]} d6 {[%emt 0:00:03]} 3. Nc3 {[%emt 0:01:08]} Nf6 {[%emt 0:00:23]} 4. f4 {[%emt 0:00:30]} g6 {[%emt 0:00:37]} 5. Nf3 {[%emt 0:00:48]} Bg7 {[%emt 0:00:06]} 6. e5 {[%emt 0:06:07]} Nd5 {[%emt 0:00:06]} 7. Nxd5 {[%emt 0:04:08]} cxd5 {[%emt 0:00:02]} 8. Bd3 {[%emt 0:00:58]} Nc6 {[%emt 0:00:19]} 9. c3 {[%emt 0:00:14]} dxe5 {[%emt 0:00:58]} 10. fxe5 {[%emt 0:00:28]} f6 {[%emt 0:00:32]} 11. exf6 {[%emt 0:20:59]} exf6 {[%emt 0:01:48]} 12. O-O {[%emt 0:04:37]} O-O {[%emt 0:00:16]} 13. Bf4 {[%emt 0:16:57]} Re8 {[%emt 0:10:44]} 14. Qb3 {[%emt 0:04:11]} Na5 {[%emt 0:01:43]} 15. Qb5 {[%emt 0:02:06]} a6 {[%emt 0:03:48]} 16. Qc5 {[%emt 0:01:07]} Nc6 {[%emt 0:00:34]} 17. Qa3 {[%emt 0:06:26]} Bg4 {[%emt 0:01:03]} 18. Rae1 {[%emt 0:00:44]} Qd7 {[%emt 0:00:48]} 19. Qb3 {[%emt 0:01:46]} Bf8 {[%emt 0:12:51]} 20. Nd2 {[%emt 0:04:41]} Be6 {[%emt 0:01:05]} 21. Re2 {[%emt 0:06:22]} b5 {[%emt 0:04:58]} 22. Bg3 {[%emt 0:01:20]} Kg7 {[%emt 0:01:37]} 23. Qc2 {[%emt 0:02:32]} Rac8 {[%emt 0:06:42]} 24. Qb1 {[%emt 0:01:55]} Bg4 {[%emt 0:07:10]} 25. Ref2 {[%emt 0:00:48]} f5 {[%emt 0:00:33]} 26. Nb3 {[%emt 0:02:46]} Bd6 {[%emt 0:03:37]} 27. Nc5 {[%emt 0:00:28]} Qe7 {[%emt 0:00:21]} 28. Bxd6 {[%emt 0:02:58]} Qxd6 {[%emt 0:00:14]} 29. Qc1 {[%emt 0:00:21]} Ne5 {[%emt 0:02:12]} 30. Nb7 {[%emt 0:00:42]} Qb6 {[%emt 0:00:31]} 31. dxe5 {[%emt 0:00:06]} Rxe5 {[%emt 0:01:53]} 32. Qf4 {[%emt 0:01:34]} Rce8 {[%emt 0:00:34]} 33. h3 {[%emt 0:00:14]} Bxh3 {[%emt 0:00:26]} 34. gxh3 {[%emt 0:00:19]} Qxb7 {[%emt 0:00:03]} 35. Qd4 {[%emt 0:01:41]} Kg8 {[%emt 0:00:36]} 36. Bxf5 {[%emt 0:01:11]} gxf5 {[%emt 0:14:14]} 37. Rg2+ {[%emt 0:00:03]} Kf8 {[%emt 0:00:07]} 38. Rxf5+ {[%emt 0:03:59]} Rxf5 {[%emt 0:00:52]} 39. Qh8+ {[%emt 0:00:05]} Ke7 {[%emt 0:00:13]} 40. Re2+ {[%emt 0:00:00]} Kd6 {[%emt 0:00:00]} 41. Qxe8 {[%emt 0:02:16]} Qa7+ {[%emt 0:06:40]} 42. Kh2 {[%emt 0:02:19]} Rf2+ {[%emt 0:00:41]} 43. Kg3 {[%emt 0:00:08]} Rxe2 {[%emt 0:00:05]} 44. Qxe2 {[%emt 0:00:02]} Qg7+ {[%emt 0:10:07]} 45. Kf2 {[%emt 0:01:57]} Qg6 {[%emt 0:04:03]} 46. a3 {[%emt 0:04:07]} Kc5 {[%emt 0:04:01]} 47. b4+ {[%emt 0:01:25]} Kd6 {[%emt 0:00:49]} 48. Qe3 {[%emt 0:00:40]} Qf5+ {[%emt 0:01:11]} 49. Kg3 {[%emt 0:06:23]} Qe4 {[%emt 0:01:43]} 50. Qb6+ {[%emt 0:04:02]} Ke5 {[%emt 0:01:06]} 51. Qc7+ {[%emt 0:00:10]} Ke6 {[%emt 0:00:24]} 52. Qc8+ {[%emt 0:01:17]} Ke5 {[%emt 0:00:40]} 53. Qc7+ {[%emt 0:00:13]} Ke6 {[%emt 0:00:26]} 54. Qc8+ {[%emt 0:00:05]} 1/2-1/2

[Event "UKR-ch"]
[Site "Kremenchuk UKR"]
[Date "2020.11.19"]
[Round "2.5"]
[White "Shevchenko, Kirill"]
[Black "Golubka, Petro"]
[Result "1-0"]
[ECO "B12"]
[WhiteElo "2592"]
[BlackElo "2487"]
[WhiteFideId "-1"]
[BlackFideId "-1"]
[PlyCount "95"]
[GameId "2129404743905565"]
[EventDate "2020.11.18"]
[EventType "swiss"]
[EventRounds "9"]
[EventCountry "UKR"]
[SourceTitle "10 Days #634"]
[Source "ChessMix"]
[SourceDate "2020.12.01"]
[SourceVersion "1"]
[SourceVersionDate "2020.12.01"]
[SourceQuality "1"]
[TimeControl "40/5400+30:1800+30"]

1. e4 {[%emt 0:00:00]} c6 {[%emt 0:06:00]} 2. d4 {[%emt 0:00:00]} d5 {[%emt 0:00:09]} 3. f3 {[%emt 0:00:02]} e6 {[%emt 0:00:09]} 4. Nc3 {[%emt 0:00:17]} Qb6 {[%emt 0:00:12]} 5. a3 {[%emt 0:01:33]} Nf6 {[%emt 0:00:08]} 6. e5 {[%emt 0:03:33]} Nfd7 {[%emt 0:00:20]} 7. f4 {[%emt 0:00:15]} c5 {[%emt 0:00:06]} 8. Nf3 {[%emt 0:00:12]} cxd4 {[%emt 0:01:46]} 9. Nxd4 {[%emt 0:00:24]} Nc6 {[%emt 0:00:13]} 10. Nf3 {[%emt 0:10:25]} a6 {[%emt 0:07:48]} 11. Bd3 {[%emt 0:05:39]} Nc5 {[%emt 0:01:39]} 12. b4 {[%emt 0:04:58]} Nxd3+ {[%emt 0:00:30]} 13. Qxd3 {[%emt 0:00:32]} Bd7 {[%emt 0:00:27]} 14. Be3 {[%emt 0:02:50]} Qc7 {[%emt 0:03:05]} 15. Nd4 {[%emt 0:15:49]} Rc8 {[%emt 0:04:05]} 16. Nxc6 {[%emt 0:01:42]} Qxc6 {[%emt 0:00:09]} 17. Bd4 {[%emt 0:00:04]} Qc4 {[%emt 0:01:05]} 18. O-O {[%emt 0:05:12]} Be7 {[%emt 0:05:10]} 19. Qe3 {[%emt 0:03:04]} O-O {[%emt 0:00:30]} 20. Rf3 {[%emt 0:02:44]} f6 {[%emt 0:13:56]} 21. f5 {[%emt 0:06:55]} Rc6 {[%emt 0:00:32]} 22. Rf4 {[%emt 0:06:53]} fxe5 {[%emt 0:13:29]} 23. Bxe5 {[%emt 0:00:38]} Bg5 {[%emt 0:00:08]} 24. Qg3 {[%emt 0:00:49]} Qxf4 {[%emt 0:00:40]} 25. Bxf4 {[%emt 0:00:07]} Bxf4 {[%emt 0:00:06]} 26. Qxf4 {[%emt 0:00:11]} Rxc3 {[%emt 0:00:08]} 27. Qd6 {[%emt 0:02:03]} Bc8 {[%emt 0:00:23]} 28. fxe6 {[%emt 0:10:15]} Rc6 {[%emt 0:00:11]} 29. Qxd5 {[%emt 0:00:15]} Bxe6 {[%emt 0:00:09]} 30. Qe5 {[%emt 0:00:58]} Re8 {[%emt 0:02:30]} 31. Rc1 {[%emt 0:06:57]} Bf7 {[%emt 0:08:09]} 32. Qd4 {[%emt 0:00:56]} Rec8 {[%emt 0:00:18]} 33. a4 {[%emt 0:02:55]} b5 {[%emt 0:00:54]} 34. a5 {[%emt 0:00:27]} h5 {[%emt 0:01:03]} 35. c3 {[%emt 0:00:33]} Kh7 {[%emt 0:00:34]} 36. h3 {[%emt 0:01:36]} Bg6 {[%emt 0:00:53]} 37. Re1 {[%emt 0:00:51]} R8c7 {[%emt 0:01:01]} 38. Re3 {[%emt 0:00:29]} Bf7 {[%emt 0:01:44]} 39. Rf3 {[%emt 0:01:23]} Re6 {[%emt 0:04:44]} 40. Kh2 {[%emt 0:00:00]} Rce7 {[%emt 0:00:00]} 41. Qc5 {[%emt 0:06:11]} Bg6 {[%emt 0:05:52]} 42. Rf8 {[%emt 0:04:58]} Re8 {[%emt 0:00:58]} 43. Rxe8 {[%emt 0:02:39]} Rxe8 {[%emt 0:03:11]} 44. Qc6 {[%emt 0:03:13]} Re2 {[%emt 0:00:09]} 45. Qxa6 {[%emt 0:00:42]} Be4 {[%emt 0:00:06]} 46. Kg1 {[%emt 0:00:04]} Rxg2+ {[%emt 0:00:13]} 47. Kf1 {[%emt 0:00:02]} Rg3 {[%emt 0:01:37]} 48. Qc8 {[%emt 0:01:55]} 1-0

[Event "UKR-ch"]
[Site "Kremenchuk UKR"]
[Date "2020.11.21"]
[Round "4.9"]
[White "Koziak, Vitali"]
[Black "Golubka, Petro"]
[Result "1-0"]
[ECO "B22"]
[WhiteElo "2428"]
[BlackElo "2487"]
[WhiteFideId "-1"]
[BlackFideId "-1"]
[PlyCount "43"]
[GameId "2129404743905577"]
[EventDate "2020.11.18"]
[EventType "swiss"]
[EventRounds "9"]
[EventCountry "UKR"]
[SourceTitle "10 Days #634"]
[Source "ChessMix"]
[SourceDate "2020.12.01"]
[SourceVersion "1"]
[SourceVersionDate "2020.12.01"]
[SourceQuality "1"]
[TimeControl "40/5400+30:1800+30"]

1. e4 {[%emt 0:00:00]} c5 {[%emt 0:07:09]} 2. c3 {[%emt 0:00:00]} d5 {[%emt 0:00:06]} 3. exd5 {[%emt 0:00:00]} Qxd5 {[%emt 0:00:04]} 4. d4 {[%emt 0:00:03]} Nc6 {[%emt 0:00:06]} 5. Nf3 {[%emt 0:01:13]} Bf5 {[%emt 0:00:14]} 6. Be2 {[%emt 0:10:00]} cxd4 {[%emt 0:03:11]} 7. cxd4 {[%emt 0:00:35]} Bxb1 {[%emt 0:00:10]} 8. Rxb1 {[%emt 0:00:19]} e6 {[%emt 0:00:40]} 9. O-O {[%emt 0:05:01]} Qxa2 {[%emt 0:17:50]} 10. Be3 {[%emt 0:05:32]} Nf6 {[%emt 0:12:30]} 11. Ne5 {[%emt 0:05:47]} Qd5 {[%emt 0:08:27]} 12. Qa4 {[%emt 0:12:32]} Bd6 {[%emt 0:10:20]} 13. Bf3 {[%emt 0:25:58]} Ne4 {[%emt 0:01:23]} 14. Nc4 {[%emt 0:00:32]} Bc7 {[%emt 0:07:43]} 15. Qa3 {[%emt 0:07:33]} f5 {[%emt 0:03:53]} 16. Rbc1 {[%emt 0:08:25]} Rd8 {[%emt 0:03:08]} 17. Rfd1 {[%emt 0:04:49]} Kf7 {[%emt 0:03:26]} 18. Bg5 {[%emt 0:08:15]} Rc8 {[%emt 0:06:37]} 19. Ne5+ {[%emt 0:01:12]} Kg8 {[%emt 0:06:36]} 20. Rxc6 {[%emt 0:00:51]} bxc6 {[%emt 0:00:27]} 21. Qe7 {[%emt 0:00:12]} h6 {[%emt 0:01:32]} 22. Bf6 {[%emt 0:01:11]} 1-0

[Event "UKR-ch"]
[Site "Lutsk UKR"]
[Date "2019.12.10"]
[Round "1.5"]
[White "Kovchan, Alexander"]
[Black "Golubka, Petro"]
[Result "0-1"]
[ECO "D77"]
[WhiteElo "2572"]
[BlackElo "2479"]
[WhiteFideId "-1"]
[BlackFideId "-1"]
[PlyCount "98"]
[GameId "2129404752039162"]
[EventDate "2019.12.10"]
[EventType "tourn"]
[EventRounds "9"]
[EventCountry "UKR"]
[EventCategory "15"]
[SourceTitle "10 Days #600"]
[Source "Chess Mix"]
[SourceDate "2019.12.20"]
[SourceVersion "1"]
[SourceVersionDate "2019.12.20"]
[SourceQuality "1"]
[TimeControl "40/5400+30:1800+30"]

{[%evp 0,91,22,22,22,28,23,-9,18,15,23,14,23,9,9,8,13,3,26,16,4,-7,7,9,18,18,-4,22,14,14,11,33,39,37,37,33,31,12,41,42,88,77,51,92,36,50,30,56,42,17,46,46,52,-28,-21,-26,55,39,33,37,66,71,72,75,93,-99,0,-223,-250,-310,-319,-357,-402,-381,-404,-778,-818,-1032,-82,-99,-106,-99,-167,-167,-182,-182,-144,-155,-151,-158,-158,-158,-171,-170]} 1. Nf3 d5 2. d4 Nf6 3. g3 g6 4. Bg2 Bg7 5. O-O O-O 6. c4 dxc4 7. Na3 c3 8. bxc3 c5 9. Bb2 Nc6 10. Re1 Qb6 11. Nc4 Qa6 12. Nfe5 Be6 13. Nxc6 bxc6 14. Ne5 Rab8 15. Qc1 Rfc8 16. Ba3 cxd4 17. cxd4 Nd5 18. Bc5 Qa4 19. Rd1 Rb5 20. Rd3 Bxe5 21. dxe5 Qa5 22. Ra3 Qc7 23. f4 Nb6 24. Bf1 a5 25. Bf2 c5 26. Rb1 Rxb1 27. Qxb1 Nd5 28. e4 Nb4 29. g4 Bxg4 30. Rc3 Rd8 31. Rxc5 Qd7 32. a3 Bh3 33. Be2 Qd2 34. Qe1 Qxf4 35. Rc3 Nc2 36. Qb1 Rd2 37. Qc1 Qxe4 38. Bf3 Nd4 39. Bxe4 Ne2+ 40. Kh1 Nxc1 41. Bg1 Ne2 42. Rxh3 Rd1 43. Rg3 Nxg3+ 44. hxg3 Ra1 45. Kg2 Rxa3 46. Bc5 Ra2+ 47. Kf3 e6 48. Ke3 a4 49. Bb1 Rg2 0-1